Cogmind - Beta 9.1 @@@ ROGUE MODE // 2019.11.03 @ 11:23:15 Player: Alexbot Result: Self-destructed Performance ------------- Evolutions (1) 500 Regions Visited (3) 600 Robots Destroyed (2) 10 Value Destroyed (21) 21 Prototype IDs (0) 0 Alien Tech Used (0) 0 Bonus (0) 0 TOTAL SCORE: 1131 Bonus ------- None Cogmind --------- Core Integrity 400/400 Matter 204/300 Energy 99/100 System Corruption 0% Temperature Cool (0) Location -9/Materials Parts ------- Power (1) Propulsion (4) Utility (2) Hacking Suite Weapon (2) Inventory (4) Signal Interpreter Peak State ------------ Power (None) Propulsion (None) Utility Hacking Suite Weapon Medium Laser Inventory (Empty) [Rating: 4] Favorites ----------- Power None Propulsion None Utility Hacking Suite Hackware Hacking Suite Weapon Medium Laser Energy Gun Medium Laser Build | -11 -10 -10 -9 ------- Run | Scr Mat Min Mat Slots Evolved 2 | . . . 2 Power . | . . . . Propulsion 2 | . . . 2 Utility . | . . . . Weapon . | . . . . Parts Attached 2 | 1 1 . . Power . | . . . . Engine . | . . . . Core . | . . . . Reactor . | . . . . Propulsion . | . . . . Treads . | . . . . Leg . | . . . . Wheel . | . . . . Hover . | . . . . Flight . | . . . . Utility 1 | . 1 . . Device . | . . . . Storage . | . . . . Processor . | . . . . Hackware 1 | . 1 . . Protection . | . . . . Artifact . | . . . . Weapon 1 | 1 . . . Energy Gun 1 | 1 . . . Energy Cannon . | . . . . Ballistic Gun . | . . . . Ballistic Cannon . | . . . . Launcher . | . . . . Special Weapon . | . . . . Impact Weapon . | . . . . Slashing Weapon . | . . . . Piercing Weapon . | . . . . Special Melee Weapon . | . . . . Unidentified Prototypes . | . . . . Parts Lost 1 | . 1 . . Power . | . . . . Propulsion . | . . . . Utility . | . . . . Weapon 1 | . 1 . . Highest Loss Streak 1 | . 1 . . Average Slot Usage (%) 14 | . 18 14 11 Hackware 10 | . 6 14 11 Energy Gun 4 | . 12 . . Naked Turns . | . . . . Heaviest Build 2 | 2 2 . . Greatest Support 3 | 3 3 3 3 Greatest Overweight (x) . | . . . . Average Overweight (x) . | . . . . Largest Inventory Capacity 4 | 4 4 4 4 Average Capacity 4 | 4 4 4 4 Most Carried 1 | . . . 1 Average Carried . | . . . . Final Capacity 4 | 4 4 4 4 Final Carried 1 | . . . 1 Class Distribution -------------------- 100% | Mutant Dominant Class ---------------- Mutant | -10/Materials Mutant | -10/Mines Mutant | -9/Materials Resources | -11 -10 -10 -9 ----------- Run | Scr Mat Min Mat Matter Collected 119 | 90 29 . . Remotely . | . . . . Salvage Created 40 | . 40 . . Parts 3 | . 3 . . Haulers Intercepted . | . . . . Recyclers Shooed 1 | . 1 . . Parts Field Recycled . | . . . . Retrieved Matter . | . . . . Parts Self-Destructed . | . . . . Prevented . | . . . . Kills | -11 -10 -10 -9 ------- Run | Scr Mat Min Mat Combat Hostiles Destroyed . | . . . . Classes Destroyed 2 | . 2 . . Builder 1 | . 1 . . Operator 1 | . 1 . . Best Kill Streak 2 | . 2 . . Combat Bots Only . | . . . . Max Kills in Single Turn 1 | . 1 . . Gunslinging . | . . . . Exploded . | . . . . Melee . | . . . . Uniques/NPCs Destroyed . | . . . . Combat | -11 -10 -10 -9 -------- Run | Scr Mat Min Mat Damage Taken 267 | . 75 192 . Core 225 | . 33 192 . Absorbed by Shields . | . . . . Core Remaining (%) 55 | 100 . 10 . Volleys Fired 11 | . 11 . . Largest 1 | . 1 . . Hottest 50 | . 50 . . Shots Fired 11 | . 11 . . Gun 11 | . 11 . . Cannon . | . . . . Launcher . | . . . . Special . | . . . . Kinetic . | . . . . Thermal 11 | . 11 . . Explosive . | . . . . Electromagnetic . | . . . . Robot Hit Streak 3 | . 3 . . Robot Miss Streak 4 | . 4 . . Penetration Max . | . . . . Secondary Targets . | . . . . Shots Hit Robots 5 | . 5 . . Core Hits 4 | . 4 . . Critical Hits . | . . . . Critical Kills . | . . . . Critical Parts Destroyed . | . . . . Melee Attacks . | . . . . Impact . | . . . . Slashing . | . . . . Piercing . | . . . . Sneak Attacks . | . . . . Combat Hostiles . | . . . . Follow-up Attacks . | . . . . Damage Inflicted 87 | . 87 . . Guns 87 | . 87 . . Cannons . | . . . . Explosions . | . . . . Melee . | . . . . Ramming . | . . . . Kinetic . | . . . . Thermal 87 | . 87 . . Explosive . | . . . . Electromagnetic . | . . . . Impact . | . . . . Slashing . | . . . . Piercing . | . . . . Highest Corruption . | . . . . Average Corruption . | . . . . Corruption Purged . | . . . . Overload Shots . | . . . . Overflow Damage . | . . . . Projectiles . | . . . . Explosions . | . . . . Melee . | . . . . Knockbacks . | . . . . Impact . | . . . . Kinetic . | . . . . Secondary . | . . . . Self-Inflicted Damage . | . . . . Shots . | . . . . Rammed . | . . . . Targets Rammed . | . . . . Kicked . | . . . . Crushed . | . . . . Highest Temperature . | . . . . Average Temperature . | . . . . Received Heat Transfer 110 | . 42 68 . Siege Activations . | . . . . Robots Corrupted . | . . . . Combat Hostiles . | . . . . Parts Fried . | . . . . Impact Corruptions . | . . . . Robots Melted . | . . . . Combat Hostiles . | . . . . Parts Melted . | . . . . Heat Transferred 259 | . 259 . . Parts Sabotaged . | . . . . Parts Stolen . | . . . . Parts Stripped . | . . . . Power Chain Reactions . | . . . . Missiles Intercepted . | . . . . Alert | -11 -10 -10 -9 ------- Run | Scr Mat Min Mat Peak Influence 40 | . 40 26 9 Average Influence 16 | . 20 19 9 Maximum Alert Level . | . . . . Low Security (%) 100 | . . . . Level 1 . | . . . . Level 2 . | . . . . Level 3 . | . . . . Level 4 . | . . . . Level 5 . | . . . . High Security . | . . . . Max Security . | . . . . Squads Dispatched 3 | . 3 . . Investigation 1 | . 1 . . Extermination . | . . . . Reinforcement 2 | . 2 . . Assault . | . . . . Garrison . | . . . . Intercept . | . . . . Construction Impeded . | . . . . Haulers Reinforced . | . . . . Stealth | -11 -10 -10 -9 --------- Run | Scr Mat Min Mat Distress Signals . | . . . . Communications Jammed . | . . . . Distress Signals . | . . . . Times Spotted 33 | . 10 23 . Peak Tracking Total 22 | . 7 22 . Tactical Retreats 2 | . 1 1 . Traps | -11 -10 -10 -9 ------- Run | Scr Mat Min Mat Traps Triggered 1 | . 1 . . Indirectly . | . . . . Trap Hack Attempts . | . . . . Triggered . | . . . . Disarmed . | . . . . Reprogrammed . | . . . . Reused . | . . . . Traps Extracted . | . . . . Installed . | . . . . Triggered . | . . . . Machines | -11 -10 -10 -9 ---------- Run | Scr Mat Min Mat Machines Disabled . | . . . . Max in Single Turn . | . . . . Machines Sabotaged . | . . . . Garrisons Compromised . | . . . . Overloaded Fab Kills . | . . . . Fab Network Shutdowns . | . . . . Hacking | -11 -10 -10 -9 --------- Run | Scr Mat Min Mat Machines Accessed 1 | . . . 1 Terminals 1 | . . . 1 Fabricators . | . . . . Repair Stations . | . . . . Recycling Units . | . . . . Scanalyzers . | . . . . Garrison Access . | . . . . Total Hacks 2 | . . . 2 Successful . | . . . . Failed 2 | . . . 2 Catastrophic . | . . . . Database Lockouts . | . . . . Manual 2 | . . . 2 Terminals 2 | . . . 2 Fabricators . | . . . . Repair Stations . | . . . . Recycling Units . | . . . . Scanalyzers . | . . . . Garrison Access . | . . . . Terminal Hacks . | . . . . Fabricator Hacks . | . . . . Repair Station Hacks . | . . . . Recycling Unit Hacks . | . . . . Scanalyzer . | . . . . Garrison Access Hacks . | . . . . Unauthorized Hacks 2 | . . . 2 Terminals . | . . . . Fabricators . | . . . . Repair Stations . | . . . . Recycling Units . | . . . . Scanalyzers . | . . . . Garrison Access . | . . . . Data Cores Recovered . | . . . . Used . | . . . . Hacking Detections 1 | . . . 1 Full Trace Events . | . . . . Feedback Events . | . . . . Feedback Blocked . | . . . . Robot Schematics Acquired . | . . . . Robots Built . | . . . . Matter . | . . . . Time . | . . . . Total Robot Build Rating . | . . . . Part Schematics Acquired . | . . . . Parts Built . | . . . . Matter . | . . . . Time . | . . . . Total Part Build Rating . | . . . . Parts Repaired . | . . . . Time . | . . . . Parts Recycled . | . . . . Recycled Matter . | . . . . Retrieved Matter . | . . . . Retrieved Components . | . . . . Parts Scanalyzed . | . . . . Part Schematics Acquired . | . . . . Parts Damaged . | . . . . Bothacking | -11 -10 -10 -9 ------------ Run | Scr Mat Min Mat Used RIF Installer . | . . . . Robots Hacked . | . . . . Non-combat . | . . . . Combat . | . . . . Robot Hacks Applied . | . . . . Relay Couplers Released . | . . . . Robots Rewired . | . . . . Allies Hacked . | . . . . Hacks Repelled . | . . . . Allies | -11 -10 -10 -9 -------- Run | Scr Mat Min Mat Total Allies . | . . . . Largest Group . | . . . . Highest-Rated Group . | . . . . Highest-Rated Ally . | . . . . Total Orders . | . . . . Ally Attacks . | . . . . Total Damage . | . . . . Kills . | . . . . Allies Corrupted . | . . . . Allies Melted . | . . . . Intel | -11 -10 -10 -9 ------- Run | Scr Mat Min Mat Robot Analysis Total . | . . . . Derelict Logs Recovered 1 | . . 1 . Drone Launches . | . . . . Drone Recoveries . | . . . . Exploration | -11 -10 -10 -9 ------------- Run | Scr Mat Min Mat Turns Passed 198 | 12 68 67 51 Spaces Moved 341 | 21 88 133 99 Core 341 | 21 88 133 99 Treads . | . . . . Legs . | . . . . Wheels . | . . . . Hover . | . . . . Flight . | . . . . Fastest Speed 50 | 50 50 50 50 Average Speed 50 | 50 50 50 50 Slowest Speed 50 | 50 50 50 50 Overloaded Moves . | . . . . Propulsion Burnouts . | . . . . Robots Hopped . | . . . . Cave-ins Triggered . | . . . . Exploration Rate (%) 16 | 3 23 29 9 Regions Visited 3 Branch Regions 1 Pre-discovered Areas . | . . . . Known Exits Taken . | . . . . Unknown Exits Taken 3 | 1 1 1 . Scrap Searched . | . . . . Spaces Dug . | . . . . Terrain Destroyed . | . . . . Melee . | . . . . Projectile . | . . . . AOE . | . . . . Actions | -11 -10 -10 -9 --------- Run | Scr Mat Min Mat Total 352 | 21 99 132 100 Wait . | . . . . Move 338 | 20 87 132 99 Hop . | . . . . Pick Up 1 | . . . 1 Fast Attach 2 | 1 1 . . Attach . | . . . . Detach . | . . . . Swap . | . . . . Drop . | . . . . Fire 11 | . 11 . . Melee . | . . . . Ram . | . . . . Kick . | . . . . Crush . | . . . . Escape Stasis . | . . . . Rewire . | . . . . Trap . | . . . . Miscellaneous . | . . . . Route ------- -11/Scrapyard -10/Materials -10/Mines -9/Materials History --------- Turn | Location | Event 3 | -11/Scrapyard | Discovered new exit (range 15) 13 | -11/Scrapyard | Entered Materials 73 | -10/Materials | Discovered new exit (range 16) 81 | -10/Materials | Entered Mines 87 | -10/Mines | Learned Materials terminal intel 103 | -10/Mines | Assembled infested the area 117 | -10/Mines | Core integrity fell below 50% 119 | -10/Mines | Core integrity fell below 20% 141 | -10/Mines | Discovered new exit (range 9) 148 | -10/Mines | Entered Materials 148 | -9/Materials | Evolved 2 slots: Propulsion x2 149 | -9/Materials | Loaded intel: 12 terminal locations 199 | -9/Materials | Self-destructed Last Messages --------------- 00087_ Acquired derelict log, extracted data. Data stored: Materials terminal intel. 00103_ ALERT: Infestation in the mines, dispatching Demolisher response squad. 00123_ G-34 Mercenary destroyed. 00136_ U-05 Engineer lays Concrete. 00140_ K-01 Serf collects debris. 00140_ U-05 Engineer lays Concrete. 00140_ K-01 Serf collects debris. 00141_ EXIT=FOUND 00142_ K-01 Serf destroyed. 00144_ K-01 Serf collects debris. PARAMETERS=PROPULSION_2 LOCATION=UNKNOWN GOAL=ESCAPE Loading Materials terminal intel (x12)... 00153_ Connecting with Terminal... 00153_ Current location identified: Materials 00178_ Acquired Signal Interpreter. 00186_ T-07 Excavator is excavating. Map ----- +----------------------------------------------------+ | ?????????????????????????????? | | ?????????????????????????????? | | ?????????????????????????????? | | ?????????????????????????????? | | ?????????????????????????????? | | ?????????????????????????????? | | ?????????????????????????????? | | ?????????????????????????????? | | ?????????????????????????????? | | ??????######?????????????????? | | ??????# #??????T??????????? | | ??????# #?????????????????? | | ??????#==* #?????????????????? | | ????#?#==* #?????????????????? | | ???# ##== #?????????????????? | | ???# t# #?????????????????? | | ????# # #?????????????????? | | ????# + #?????????????????? | | ????# # #?????????????????? | | ???## ######?????????????????? | | ???# #??###########????????? | | ???# #??# #????????? | | ???# #??# #??????""? | | ???## ##??# #??????T"? | | ????# #???# #??????""? | | ????#@#???# !!! #????????? | | ????# #???# !! #????????? | | ????# #???# | ! /#????????? | | ????# #???# #????????? | | ????# #???#####+#####????????? | | ????# #??????# #???????????? | | ????# ######## #???????????? | | ????# #???????????? | | ????########## #???????????? | | ?????????????# #???????????? | | ?????????????# #???????????? | | ?????????????# #???????????? | | ?????????????# #???????????? | | ?????????????# #???????????? | | ?????????????# #???????????? | | ?????????????# #??????#????? | | ?????????????# #????? #????? | | ?????????????# #???? #????? | | ?????????????# #### #????? | | ?????????????# #????? | | ?????????????# #????? | | ?????????????# #????? | | ?????????????# #### #????? | | ???########### #???? #????? | | ???# # #????? #????? | +----------------------------------------------------+ Best States ------------- Heat Dissipation 28 Energy Generation 5 Energy Capacity 100 Matter Stores 204 Matter Capacity 300 Sight Range 16 Terrain Scan Density 10 Evasion (%) 50 Offensive Hacking 10 Item Schematics ----------------- None Robot Schematics ------------------ None Fabricated ------------ Nothing Alien Tech Used ----------------- None Achievements -------------- None Challenges ------------ None Game ------ Seed AlloySniperKit Manual? 0 Play Time 00:03:20 Cumulative 673.7 hours Start 2019.11.03 @ 11:20:36 End 2019.11.03 @ 11:23:15 Sessions 1 Manual Loads 0 Difficulty Rogue Special Mode None Game No. 170 Rogue 170 Adventurer 0 Explorer 0 Win Type - Total 30 Types 22/0/2/3/2/0/1 Lore% 96 Gallery% 97 Achievement% 90 Wizard Run 0 Options --------- ASCII 0 Keyboard 1 Movement Numpad Keybinds 0 Fullscreen 1 Font 18/SmallcapsGlow Map View 76x50 Tactical HUD 1 Map Filters NONE Filters NONE Steam 1 RUN: 0a48b163-3c84-4fe0-81a6-0a4952c3afbc